bitfinex-derivatives/quotes_SOLF0:USTF0_20241105
["timestamp","ask_amount","ask_price","bid_price","bid_amount"]
[1730783793843,3.1272,159.99,159.96,3.1276]
[1730783795547,3.1276,159.98,159.94,3.1281]
[1730783795745,9.60939076,159.98,159.82,6.2609]
[1730783795953,9.60939076,159.98,159.92,9.60939076]
[1730783796151,3.1278,159.96,159.93,3.1283]
[1730783796647,3.1276,159.97,159.93,3.1283]
[1730783800047,3.1276,159.97,159.94,9.60939076]
[1730783800350,9.60939076,160.0,159.96,3.1278]
[1730783800739,3.1277,159.97,159.93,3.1283]
[1730783801343,9.60939076,159.98,159.93,3.1283]
[1730783802249,3.1278,159.96,159.93,3.1283]
[1730783802747,9.60939076,159.98,159.94,3.1281]
[1730783803346,12.73689076,159.98,159.94,3.1281]
[1730783803547,3.1275,159.98,159.94,3.1281]
[1730783804747,3.1276,159.97,159.94,3.1281]
[1730783813553,9.60939076,159.99,159.94,3.1281]
[1730783813554,12.73669076,159.99,159.95,3.1278]
[1730783813760,3.1273,159.99,159.94,9.60939076]
[1730783814862,9.60939076,159.99,159.9,2.8]
[1730783815059,3.1275,159.98,159.93,9.60939076]
[1730783815858,3.1275,159.98,159.95,3.128]
[1730783822364,3.1275,159.98,159.95,12.73739076]
[1730783822570,3.1273,159.99,159.96,3.1278]
[1730783822766,9.60939076,160.0,159.95,9.60939076]
[1730783822969,3.1275,159.98,159.94,3.1281]
[1730783823164,3.1275,159.98,159.94,12.73749076]
[1730783823365,3.1275,159.98,159.94,9.60939076]
[1730783823869,9.60939076,160.0,159.95,3.1279]
[1730783825376,3.1275,159.98,159.95,3.1279]
[1730783830476,3.1272,159.99,159.96,3.1276]
[1730783831278,3.1274,159.98,159.95,3.1279]
[1730783833780,3.1271,160.0,159.97,3.1274]
[1730783838280,3.1271,160.0,159.95,9.60939076]
[1730783838281,2.653,160.02,159.96,9.60939076]
[1730783838480,9.60939076,160.01,159.96,9.60939076]
[1730783838681,9.60939076,160.01,159.94,9.60939076]
[1730783839187,9.60939076,159.98,159.88,0.9473]
[1730783839388,9.60939076,159.95,159.88,2.8]
[1730783839588,9.60939076,159.95,159.89,9.60939076]
[1730783840282,3.1282,159.94,159.91,3.1286]
[1730783841087,3.1281,159.95,159.91,3.1286]
[1730783841288,3.1281,159.95,159.92,3.1285]
[1730783851992,12.73749076,159.95,159.92,3.1285]
[1730783856094,3.1281,159.95,159.92,3.1285]
[1730783858292,2.7784,159.97,159.9,9.60939076]
[1730783858494,15.51539076,159.97,159.94,3.128]
[1730783866601,9.60939076,159.96,159.94,3.128]
[1730783866798,12.73719076,159.96,159.93,3.1283]
[1730783870002,12.73719076,159.96,159.9,9.60939076]
[1730783870201,12.73719076,159.96,159.94,3.1281]
[1730783870702,1.4063,159.97,159.92,9.60939076]
[1730783871202,1.3021,159.98,159.96,3.1278]
[1730783871703,4.4295,159.98,159.96,3.1278]
[1730783871899,1.3021,159.98,159.96,3.1278]
[1730783872104,9.60939076,159.99,159.96,3.1278]
[1730783872506,12.73669076,159.99,159.96,3.1278]
[1730783873105,9.60939076,159.99,159.96,3.1278]
[1730783873302,3.1274,159.98,159.96,3.1278]
[1730783874717,3.1274,159.98,159.95,3.1279]
[1730783876707,3.1274,159.98,159.93,12.40939076]
[1730783876908,3.1274,159.98,159.96,3.1277]
[1730783879608,3.1274,159.98,159.93,12.40939076]
[1730783879908,3.1274,159.98,159.95,3.1279]
[1730783881507,5.4968,160.01,159.93,12.40939076]
[1730783881508,12.73709076,159.97,159.94,3.1281]
[1730783881910,9.60939076,159.97,159.91,9.60939076]
[1730783882213,9.60939076,159.96,159.93,3.1282]
[1730783882408,9.60939076,159.95,159.89,76.13552109]
[1730783882614,9.60939076,159.95,159.92,3.1285]
[1730783883311,12.73749076,159.95,159.92,3.1285]
[1730783889415,3.1281,159.95,159.92,3.1285]
[1730783889714,12.73749076,159.95,159.92,3.1285]
[1730783891620,2.6968,160.01,159.92,9.60939076]
[1730783891812,9.60939076,159.98,159.93,9.60939076]
[1730783892115,9.60939076,159.98,159.92,9.60939076]
[1730783892312,9.60939076,159.96,159.93,3.1282]
[1730783893119,9.60939076,159.96,159.92,9.60939076]
[1730783893320,9.60939076,159.96,159.94,3.1281]
[1730783898923,3.1277,159.97,159.94,3.1281]
[1730783901225,9.60939076,159.99,159.97,3.1276]
[1730783902029,12.73659076,159.99,159.96,3.1277]
[1730783907821,12.73659076,159.99,159.93,9.60939076]
[1730783908031,3.1272,159.99,159.97,3.1276]
[1730783908224,3.1271,160.0,159.97,3.1276]
[1730783908527,1.3041,160.01,159.96,9.60939076]
[1730783908730,9.60939076,160.0,159.95,2.8]
[1730783909027,9.60939076,160.0,159.98,3.1273]
[1730783916239,12.73629076,160.01,159.98,3.1273]
[1730783918442,9.60939076,160.01,159.95,12.40939076]
[1730783920341,9.60939076,160.01,159.98,3.1272]
[1730783921244,9.60939076,160.01,159.96,3.1276]
[1730783921440,9.60939076,160.01,159.95,12.40939076]
[1730783922342,9.60939076,160.01,159.98,3.1272]
[1730783924644,9.60939076,160.01,159.95,12.40939076]
[1730783925343,9.60939076,160.01,159.99,3.1272]
[1730783929452,9.60939076,160.01,159.95,12.40939076]
[1730783929747,12.73619076,160.01,159.98,3.1273]
[1730783932951,2.7256,160.02,160.0,3.1269]
[1730783933151,1.32,160.02,159.98,9.60939076]
[1730783933647,38.05872003,160.03,159.98,9.60939076]
[1730783933847,1.3282,160.1,160.0,9.60939076]
[1730783933848,9.60939076,160.05,160.0,9.60939076]
[1730783934249,3.1257,160.07,160.04,3.1262]
[1730783934456,9.60939076,160.08,160.02,9.60939076]
[1730783934653,1.3033,160.09,160.04,9.60939076]
[1730783934951,1.3033,160.09,160.05,9.60939076]
[1730783935352,1.3033,160.09,160.06,3.1257]
[1730783935547,1.3033,160.09,160.05,9.60939076]
[1730783936150,1.3033,160.09,160.06,3.1258]
[1730783937353,9.60939076,160.08,160.06,3.1258]
[1730783937743,9.60939076,160.07,160.05,3.126]
[1730783941657,3.1255,160.08,160.05,3.126]
[1730783946064,3.1256,160.07,160.04,3.126]
[1730783946565,10.91269076,160.09,160.03,2.8]
[1730783947564,9.60939076,160.07,160.03,2.8]
[1730783949268,12.73509076,160.07,160.04,3.1262]
[1730783952369,3.1259,160.06,160.03,5.9264]
[1730783952570,3.1259,160.06,160.02,9.60939076]
[1730783952571,9.60939076,160.06,160.0,72.87099515]
[1730783952871,9.60939076,160.05,160.0,85.28038591]
[1730783953273,3.1262,160.04,160.01,3.1266]
[1730783953470,9.60939076,160.05,160.0,85.28038591]
[1730783955273,12.73549076,160.05,160.02,3.1266]
[1730783957573,3.1262,160.04,160.01,3.1267]
[1730783959576,9.60939076,160.05,160.0,85.28038591]
[1730783960375,9.60939076,160.03,159.98,2.8]
[1730783960575,2.8,160.06,159.98,2.8]
[1730783960576,9.60939076,160.01,159.98,2.8]
[1730783960776,12.73619076,160.01,159.98,5.9273]
[1730783961878,9.60939076,160.01,159.99,3.1271]
[1730783962077,9.60939076,160.03,159.98,12.40939076]
[1730783962278,10.98019076,160.04,159.99,9.60939076]
[1730783962574,14.10659076,160.04,160.0,3.1268]
[1730783964080,14.10659076,160.04,159.99,9.60939076]
[1730783964277,14.10659076,160.04,160.01,3.1268]
[1730783965076,1.3708,160.04,160.02,3.1264]
[1730783965278,1.3708,160.04,159.99,9.60939076]
[1730783966073,9.60939076,160.03,159.99,9.60939076]
[1730783967079,9.60939076,160.03,160.0,3.1269]
[1730783967576,9.60939076,160.03,159.99,9.60939076]
[1730783967776,14.10639076,160.04,159.99,9.60939076]
[1730783969278,14.10639076,160.04,160.01,3.1268]
[1730783973179,4.497,160.04,160.01,3.1268]
[1730783977488,14.10639076,160.04,160.01,3.1268]
[1730783979384,3.1265,160.03,159.98,9.60939076]
[1730783980692,3.1265,160.03,160.0,3.1268]
[1730783980889,12.39009076,160.04,160.0,3.1268]
[1730783981089,15.51639076,160.04,160.0,3.1268]
[1730783984397,15.51639076,160.04,160.01,3.1268]
[1730783986898,5.907,160.04,160.01,3.1268]
[1730783987201,5.907,160.04,160.02,3.1265]
[1730783987202,1.4099,160.04,160.02,3.1265]
[1730784001403,12.73539076,160.05,160.02,3.1265]
[1730784002408,9.60939076,160.05,160.02,3.1265]
[1730784002611,2.6238,160.1,160.01,9.60939076]
[1730784002902,9.60939076,160.06,160.0,9.60939076]
[1730784003106,9.60939076,160.06,160.03,3.1263]
[1730784003604,9.60939076,160.06,160.04,3.1262]
[1730784003810,12.73519076,160.06,160.0,9.60939076]
[1730784005310,12.73519076,160.06,160.02,3.1265]
[1730784005807,12.73519076,160.06,160.01,3.1266]
[1730784006007,12.73519076,160.06,160.0,9.60939076]
[1730784006507,9.60939076,160.06,159.99,2.8]
[1730784006808,3.1264,160.03,159.99,2.8]
[1730784007607,3.1264,160.03,160.0,3.1269]
[1730784008508,1.3033,160.05,160.0,3.1269]
[1730784008805,3.1263,160.04,160.0,3.1269]
[1730784009104,3.1263,160.04,160.01,3.1268]
[1730784009704,14.03879076,160.05,160.02,3.1265]
[1730784009908,12.40939076,160.07,160.01,9.60939076]
[1730784010207,9.60939076,160.09,160.03,9.60939076]
[1730784010602,12.73479076,160.09,160.05,3.1258]
[1730784011005,9.60939076,160.09,160.05,3.1258]
[1730784012315,41.16937699,160.08,160.05,3.1258]
[1730784014819,9.60939076,160.07,160.05,3.1258]
[1730784016713,9.60939076,160.07,159.99,2.8]
[1730784017020,9.60939076,160.04,160.01,3.1267]
[1730784017212,9.60939076,160.06,160.0,2.8]
[1730784017410,3.1261,160.05,160.02,3.1265]
[1730784019818,12.73549076,160.05,160.02,3.1265]
[1730784021026,9.60939076,160.05,160.02,3.1265]
[1730784022224,12.73539076,160.05,160.02,3.1265]
[1730784025324,9.60939076,160.05,160.0,12.40939076]
[1730784025627,9.60939076,160.07,160.01,9.60939076]
[1730784026125,9.60939076,160.07,160.04,3.1261]
[1730784026329,9.60939076,160.07,160.02,9.60939076]
[1730784026528,3.1256,160.08,160.02,9.60939076]
[1730784026729,12.73499076,160.08,160.03,3.1262]
[1730784026931,12.73499076,160.08,160.02,9.60939076]
[1730784028331,12.73499076,160.08,160.05,3.126]
[1730784031434,3.1256,160.08,160.05,3.126]
[1730784031734,9.60939076,160.07,160.05,3.126]
[1730784033936,3.1256,160.08,160.05,3.126]
[1730784035736,5.4924,160.11,160.0,2.8]
[1730784035938,3.126,160.06,160.02,3.1264]
[1730784036239,5.4924,160.11,160.02,3.1264]
[1730784036436,5.4924,160.11,159.98,76.09777615]
[1730784036637,5.4924,160.11,159.99,2.8]
[1730784036840,3.1263,160.04,159.99,2.8]
[1730784037036,3.1263,160.04,160.01,3.1268]
[1730784039043,3.1264,160.04,160.0,3.1269]
[1730784039343,2.7475,160.06,160.0,3.1269]
[1730784039838,2.7475,160.06,159.98,78.89777615]
[1730784040042,3.1263,160.04,160.01,3.1268]
[1730784041244,3.1261,160.05,160.02,3.1266]
[1730784049946,5.8733,160.06,160.03,3.1263]
[1730784050151,2.7475,160.06,159.98,78.89777615]
[1730784051750,5.8734,160.06,160.0,3.1269]
[1730784051943,5.8734,160.06,159.98,78.89777615]
[1730784052654,5.8734,160.06,160.03,3.1264]
[1730784053756,2.7475,160.06,160.0,2.8]
[1730784053954,3.1261,160.05,160.02,3.1266]
[1730784056458,3.1261,160.05,160.0,2.8]
[1730784056658,3.1261,160.05,160.03,3.1264]
[1730784056859,3.1261,160.05,160.0,2.8]
[1730784058260,3.1261,160.05,160.02,3.1265]
[1730784059260,3.1261,160.05,160.0,2.8]
[1730784059560,5.8734,160.06,160.0,2.8]
[1730784059754,1.356,160.06,160.0,2.8]
[1730784059953,1.356,160.06,160.04,3.1261]
[1730784060160,4.1054,160.1,160.04,3.1261]
[1730784060360,1.4146,160.09,160.04,3.1261]
[1730784061359,3.1258,160.07,160.04,3.1261]
[1730784061563,1.4146,160.09,160.03,3.1263]
[1730784061862,3.1257,160.07,160.0,2.8]
[1730784062264,1.4146,160.09,160.03,3.1262]
[1730784062461,1.3077,160.08,160.0,2.8]
[1730784062956,1.3077,160.08,160.0,3.1269]
[1730784063158,1.3077,160.08,159.98,78.89777615]
[1730784063665,3.1268,160.02,159.98,82.02497615]
[1730784063864,3.1268,160.02,159.98,2.8]
[1730784065269,3.1268,160.02,159.99,3.1272]
[1730784068473,3.1264,160.03,159.99,3.1272]
[1730784072682,2.8,160.07,159.98,3.1273]
[1730784073371,3.1267,160.02,159.98,3.1273]
[1730784074082,3.1267,160.02,159.99,3.1272]
[1730784074278,3.1272,160.0,159.93,76.10981816]
[1730784074478,1.2887,160.01,159.93,76.10981816]
[1730784074680,1.3151,160.0,159.92,3.1284]
[1730784074879,2.8,159.99,159.91,2.8]
[1730784075076,3.1279,159.96,159.91,2.8]
[1730784075583,3.1279,159.96,159.93,3.1282]
[1730784077786,2.8,159.99,159.93,3.1282]
[1730784077979,3.1275,159.98,159.94,3.128]
[1730784078384,2.8,159.99,159.94,3.128]
[1730784079078,1.3151,160.0,159.94,3.128]
[1730784079586,3.1276,159.97,159.94,3.128]
[1730784081486,4.1151,160.0,159.91,2.8]
[1730784081687,3.1273,159.99,159.96,3.1277]
[1730784082582,4.4155,160.01,159.98,3.1273]
[1730784082886,1.2887,160.01,159.95,2.8]
[1730784083088,3.1264,160.03,159.99,3.127]
[1730784083883,1.3887,160.04,159.99,3.127]
[1730784084090,3.1267,160.02,159.99,3.127]
[1730784084990,1.3887,160.04,159.96,2.8]
[1730784085191,3.1265,160.03,160.0,3.1268]
[1730784086090,3.1265,160.03,159.99,3.1271]
[1730784087592,3.1266,160.02,159.99,3.1271]
[1730784092394,1.3887,160.04,159.96,2.8]
[1730784092795,5.5761,160.07,159.96,2.8]
[1730784092996,2.7761,160.07,159.96,2.8]
[1730784093186,1.3893,160.07,159.96,2.8]
[1730784094195,1.3893,160.07,160.04,3.126]
[1730784096001,1.3893,160.07,160.05,3.126]
[1730784096595,40.20117149,160.08,160.05,3.126]
[1730784100002,3.1251,160.1,160.07,3.1256]
[1730784100206,5.464,160.12,160.01,2.8]
[1730784100609,3.1249,160.11,160.04,3.1261]
[1730784100808,3.1249,160.11,160.05,2.8]
[1730784101309,3.1249,160.11,160.08,3.1254]
[1730784102907,2.8,160.11,159.95,2.8]
[1730784103510,3.1261,160.05,160.01,3.1267]
[1730784104009,2.8,160.11,159.99,2.8]
[1730784104209,3.1258,160.06,159.99,2.8]
[1730784104906,3.1258,160.06,160.01,3.1268]
[1730784105110,3.1258,160.06,159.99,2.8]
[1730784105514,2.8,160.11,159.99,2.8]
[1730784106112,3.1259,160.06,160.02,3.1264]
[1730784106713,2.8,160.11,160.02,3.1264]
[1730784106714,3.126,160.05,160.02,3.1264]
[1730784108116,2.8,160.07,159.99,2.8]
[1730784108320,1.3794,160.06,159.99,2.8]
[1730784108816,3.1263,160.04,160.0,3.1268]
[1730784109017,3.1263,160.04,159.99,2.8]
[1730784109515,1.3794,160.06,159.99,2.8]
[1730784109716,3.1261,160.05,160.01,3.1267]
[1730784111421,3.1261,160.05,160.0,3.1268]
[1730784111719,3.1261,160.05,159.99,2.8]
[1730784112021,3.1261,160.05,160.01,3.1266]
[1730784112323,3.1261,160.05,159.99,2.8]
[1730784112518,4.5053,160.06,159.99,2.8]
[1730784112823,1.3794,160.06,160.03,3.1263]
[1730784114826,1.3794,160.06,159.99,2.8]
[1730784115017,2.664,160.12,159.99,2.8]
[1730784115224,4.1902,160.11,159.99,2.8]
[1730784116228,3.1256,160.07,160.04,3.1261]
[1730784116428,4.1902,160.11,160.04,3.1261]
[1730784117227,3.1255,160.08,160.04,3.1261]
[1730784118929,3.1255,160.08,159.99,2.8]
[1730784119126,3.1242,160.15,160.1,3.125]
[1730784119327,1.3675,160.16,160.1,3.125]
[1730784119829,1.3675,160.16,160.11,3.1247]
[1730784120229,3.1242,160.15,160.11,3.1247]
[1730784121025,3.1242,160.15,160.06,2.8]
[1730784121231,4.4914,160.16,160.06,2.8]
[1730784121428,5.4125,160.19,160.07,2.8178]
[1730784121826,3.1238,160.17,160.13,3.1243]
[1730784122227,5.4125,160.19,160.13,3.1243]
[1730784122426,5.4125,160.19,160.11,2.8]
[1730784122928,3.1237,160.17,160.11,5.9247]
[1730784123122,5.4125,160.19,160.11,5.9247]
[1730784123538,5.4125,160.19,160.11,2.8]
[1730784123830,5.4125,160.19,160.12,3.1246]
[1730784124534,3.124,160.16,160.12,3.1246]
[1730784125030,5.4125,160.19,160.11,2.8]
[1730784125233,5.4125,160.19,160.11,5.9248]
[1730784125629,3.1242,160.15,160.11,5.9248]
[1730784126133,5.4125,160.19,160.11,2.8]
[1730784126333,3.1244,160.14,160.11,2.8]
[1730784130336,3.1244,160.14,160.11,5.9248]
[1730784136742,5.4125,160.19,160.11,2.8]
[1730784136933,5.4125,160.19,160.12,3.1245]
[1730784137638,3.1241,160.15,160.12,3.1245]
[1730784145340,5.4125,160.19,160.11,2.8]
[1730784145644,3.124,160.16,160.13,3.1244]
[1730784146146,3.1241,160.15,160.12,3.1246]
[1730784153348,5.4125,160.19,160.11,2.8]
[1730784153548,3.1239,160.16,160.13,3.1244]
[1730784154648,5.4125,160.19,160.11,2.8]
[1730784154848,3.1241,160.15,160.12,3.1246]
[1730784166960,5.4125,160.19,160.09,2.8]
[1730784167156,3.1239,160.16,160.13,3.1244]
[1730784167357,5.4125,160.19,160.09,2.8]
[1730784168261,3.1241,160.15,160.12,3.1246]
[1730784171462,5.4125,160.19,160.09,2.8]
[1730784172360,2.6125,160.19,160.09,2.8]
[1730784172963,5.7359,160.19,160.16,3.1238]
[1730784173164,2.6125,160.19,160.09,2.8]
[1730784173462,3.1241,160.15,160.12,3.1245]
[1730784173961,2.6125,160.19,160.09,2.8]
[1730784174263,3.1239,160.16,160.13,3.1243]
[1730784179061,38.01561096,160.22,160.07,2.8178]
[1730784179062,6.2413,160.33,160.2,3.123]
[1730784179259,6.2413,160.33,160.19,2.78]
[1730784179260,2.673,160.28,160.19,2.78]
[1730784179963,5.453,160.28,160.19,2.78]
[1730784180165,3.1221,160.25,160.21,3.1228]
[1730784180464,2.673,160.28,160.19,2.78]
[1730784182971,3.1223,160.25,160.2,3.123]
[1730784183271,3.1223,160.25,160.19,2.78]
[1730784183567,3.1223,160.24,160.2,3.1229]
[1730784183768,2.673,160.28,160.18,2.78]
[1730784183964,2.78,160.25,160.16,2.78]
[1730784184171,1.2812,160.24,160.16,2.78]
[1730784184369,1.2812,160.24,160.14,1.3955]
[1730784184575,1.2812,160.24,160.07,2.78]
[1730784185261,3.1236,160.18,160.12,3.1246]
[1730784185468,3.1236,160.18,160.12,2.78]
[1730784186372,2.78,160.21,160.12,2.78]
[1730784186671,3.1233,160.19,160.15,3.1239]
[1730784189076,2.78,160.22,160.15,3.1239]
[1730784189278,3.1235,160.18,160.14,3.1242]
[1730784189576,3.1235,160.18,160.12,2.78]
[1730784191274,3.1235,160.18,160.15,3.124]
[1730784193778,3.1235,160.18,160.12,2.78]
[1730784193982,3.1238,160.17,160.14,3.1242]
[1730784194879,3.1238,160.17,160.12,2.78]
[1730784195177,3.1238,160.17,160.13,3.1244]
[1730784195780,2.7191,160.21,160.13,3.1244]
[1730784195980,3.124,160.16,160.13,3.1244]
[1730784196180,2.78,160.18,160.12,2.78]
[1730784196379,3.1238,160.17,160.12,3.1246]
[1730784196589,2.78,160.18,160.12,3.1246]
[1730784197183,2.78,160.18,160.1,3.1249]
[1730784197379,1.3966,160.17,160.1,3.1249]
[1730784197579,1.3966,160.17,160.08,3.1253]
[1730784198282,3.1248,160.12,160.08,3.1253]
[1730784200280,3.1248,160.12,160.09,3.1252]
[1730784200585,1.3966,160.17,160.04,2.7094]
[1730784200787,2.78,160.14,160.05,2.78]
[1730784200975,2.6675,160.13,160.05,2.78]
[1730784201985,3.1253,160.09,160.06,3.1258]
[1730784205688,3.1254,160.08,160.05,3.126]
[1730784213290,1.3025,160.12,160.03,2.78]
[1730784213489,3.1253,160.09,160.03,2.78]
[1730784214091,3.1253,160.09,160.05,3.1259]
[1730784221596,3.1253,160.09,160.04,3.126]
[1730784221794,3.1253,160.09,160.03,2.78]
[1730784222094,3.1253,160.09,160.05,3.1258]
[1730784225396,2.78,160.11,160.05,3.1258]
[1730784225596,3.1255,160.08,160.05,3.1258]
[1730784228301,3.1255,160.08,160.03,2.78]
[1730784228498,3.1255,160.08,160.06,3.1258]
[1730784229800,2.78,160.11,160.06,3.1258]
[1730784230000,3.1253,160.09,160.06,3.1258]
[1730784230195,2.78,160.11,160.08,3.1254]
[1730784230397,5.4475,160.13,160.08,3.1254]
[1730784230898,5.4475,160.13,160.07,3.1255]
[1730784231501,3.1251,160.1,160.07,3.1255]
[1730784232001,3.1254,160.09,160.05,3.1258]
[1730784233004,3.1254,160.09,160.03,2.78]
[1730784233202,5.4475,160.13,160.03,2.78]
[1730784233403,3.1253,160.09,160.03,2.78]
[1730784234204,3.1253,160.09,160.06,3.1257]
[1730784239705,5.4475,160.13,160.03,2.78]
[1730784239906,3.1256,160.07,160.04,3.1261]
[1730784241111,5.4475,160.13,160.05,3.126]
[1730784241112,3.1255,160.08,160.05,3.126]
[1730784242117,3.1256,160.07,160.05,3.126]
[1730784242616,5.4475,160.13,160.03,3.1263]
[1730784244222,3.1258,160.07,160.03,3.1263]
[1730784244421,5.4475,160.13,160.03,3.1263]
[1730784245523,5.4475,160.13,160.01,2.78]
[1730784245723,3.1257,160.07,160.04,3.1262]
[1730784246023,2.78,160.09,160.01,2.78]
[1730784246221,1.3998,160.08,160.01,2.78]
[1730784246922,3.126,160.06,160.03,3.1263]
[1730784247525,3.126,160.06,160.04,3.1262]
[1730784248926,1.3998,160.08,160.04,3.1262]
[1730784249125,3.1256,160.07,160.04,3.1262]
[1730784259037,1.3998,160.08,160.04,3.1262]
[1730784259235,3.1258,160.06,160.04,3.1262]
[1730784259834,1.3998,160.08,160.04,3.1262]
[1730784260035,3.1257,160.07,160.04,3.1262]
[1730784274341,4.5253,160.08,160.05,3.126]
[1730784274546,2.78,160.11,160.01,2.78]
[1730784274945,3.1254,160.08,160.05,3.1259]
[1730784275942,2.78,160.11,160.01,2.78]
[1730784276141,3.1254,160.09,160.01,2.78]
[1730784277250,3.1254,160.09,160.05,3.1258]
[1730784278450,3.1254,160.09,160.03,3.1263]
[1730784278752,3.1254,160.09,160.01,2.78]
[1730784279642,3.1254,160.09,160.06,3.1258]
[1730784282451,9.60185582,160.08,160.06,3.1258]
[1730784284750,9.60185582,160.07,160.01,12.38185582]
[1730784284958,2.78,160.11,160.01,2.78]
[1730784284959,9.60185582,160.05,160.01,2.78]
[1730784285347,9.60185582,160.05,160.03,3.1262]
[1730784285749,9.60185582,160.05,160.01,2.78]
[1730784286351,9.60185582,160.04,160.01,2.78]
[1730784287358,3.1262,160.05,160.01,2.78]
[1730784287552,9.60185582,160.04,160.01,2.78]
[1730784288661,9.60185582,160.04,160.02,3.1266]
[1730784289260,9.60185582,160.04,160.01,2.78]
[1730784289459,9.60185582,160.04,160.03,3.1264]
[1730784293259,3.1264,160.03,160.0,79.20676772]
[1730784293460,12.72825582,160.03,160.0,76.07996772]
[1730784293762,12.72825582,160.03,160.0,79.20686772]
[1730784295155,12.72825582,160.03,160.0,76.07996772]
[1730784295356,12.72825582,160.03,160.01,3.1268]
[1730784295557,9.60185582,160.03,160.01,3.1268]
[1730784300759,3.1262,160.04,160.01,3.1268]
[1730784300760,12.72805582,160.04,160.01,3.1268]
[1730784303167,12.72805582,160.04,160.02,3.1266]
[1730784303667,9.60185582,160.04,160.02,3.1266]
[1730784308970,1.3925,160.06,160.01,9.60185582]
[1730784309167,1.3925,160.06,160.05,3.126]
[1730784310263,9.60185582,160.08,160.06,3.1256]
[1730784310468,9.60185582,160.08,160.03,9.60185582]
[1730784310773,1.418,160.1,160.03,9.60185582]
[1730784310973,9.60185582,160.09,160.04,2.78]
[1730784311276,1.418,160.1,160.07,3.1254]
[1730784311576,9.60185582,160.09,160.04,2.78]
[1730784312166,9.60185582,160.1,160.05,9.60185582]
[1730784312362,2.6441,160.14,160.07,9.60185582]
[1730784312567,9.60185582,160.12,160.07,9.60185582]
[1730784313468,9.60185582,160.11,160.05,1.3768]
[1730784313670,9.60185582,160.11,160.09,3.1251]
[1730784314669,9.60185582,160.11,160.1,3.125]
[1730784314868,9.60185582,160.13,160.08,9.60185582]
[1730784315068,2.78,160.16,160.1,9.60185582]
[1730784315271,2.78,160.16,160.12,3.1246]
[1730784315272,9.60185582,160.15,160.12,3.1246]
[1730784316572,9.60185582,160.14,160.12,3.1246]
[1730784319074,9.60185582,160.14,160.08,12.38185582]
[1730784319271,9.60185582,160.12,160.08,2.78]
[1730784319672,9.60185582,160.12,160.09,3.1251]
[1730784320077,9.60185582,160.12,160.08,2.78]
[1730784321277,9.60185582,160.12,160.1,3.125]
[1730784322268,9.60185582,160.12,160.08,2.78]
[1730784322474,9.60185582,160.11,160.09,3.1252]
[1730784322671,9.60185582,160.11,160.0,76.07996772]
[1730784322874,7.2677,160.1,160.06,3.1257]
[1730784323171,9.60185582,160.09,160.06,3.1257]
[1730784324878,2.78,160.13,160.08,3.1252]
[1730784324879,3.1247,160.12,160.08,3.1252]
[1730784325081,9.60185582,160.11,160.07,9.60185582]
[1730784325477,9.60185582,160.11,160.08,3.1254]
[1730784327482,12.72675582,160.11,160.08,3.1254]
[1730784341690,1.3251,160.14,160.05,2.78]
[1730784341891,9.60185582,160.1,160.06,3.1258]
[1730784342695,12.72735582,160.08,160.05,3.1259]
[1730784343694,3.1255,160.08,160.05,3.1259]
[1730784343894,12.72735582,160.08,160.05,3.1259]
[1730784348701,9.60185582,160.08,160.05,3.126]
[1730784350303,12.72725582,160.08,160.05,3.126]
[1730784350502,2.6648,160.13,160.03,2.78]
[1730784350503,1.3752,160.13,160.06,9.60185582]
[1730784350806,1.3752,160.13,160.1,9.60185582]
[1730784351604,1.3752,160.13,160.1,12.72675582]